[Event "Bangabandhu Premier Div League 2022"]
[Site "Dhaka"]
[Date "2022.12.09"]
[Round "10.10"]
[White "Habibur Rahman, Sohel"]
[Black "Rahman, Siddiqur"]
[Result "1/2-1/2"]
[ECO "C28"]
[WhiteElo "1871"]
[BlackElo "1970"]
[Annotator "TA"]
[PlyCount "141"]
[EventDate "2022.11.30"]
[EventType "team-tourn"]
[EventCountry "BAN"]
[SourceTitle "playchess.com"]
[Source "ChessBase"]
[SourceQuality "1"]
[TimeControl "40/5400+30:1800+30"]

{[%evp 9,141,-5,16,3,2,0,1,0,0,-6,0,0,-14,-11,-18,-29,-25,-18,-12,-16,-18,-18,-12,-22,0,0,4,-16,-18,-11,0,0,0,0,0,0,0,-38,-36,-52,-58,-79,154,-59,0,-69,62,29,69,42,42,42,42,42,42,42,42,42,42,42,88,88,91,90,106,106,114,114,114,114,107,114,237,118,183,182,968,476,1419,233,383,379,375,334,364,354,330,304,380,371,364,319,337,314,287,288,276,254,612,540,531,410,1130,1044,5376,3383,2617,2127,779,8,5804,1402,3986,1955,2912,2755,29964,29967,9386,3378,1527,183,183,0,0,0,0,0,0,0,0,0,0,0]} 1. e4 {[%emt 0:00:16]} e5 {[%emt 0:00:27]} 2. Bc4 {[%emt 0:00:25]} Nc6 {[%emt 0:02:14]} 3. a3 {[%emt 0:01:31]} Nf6 {[%emt 0:00:15]} 4. Nc3 {[%emt 0:00:44]} Bc5 {[%emt 0:01:08]} 5. d3 {[%emt 0:01:22]} h6 {[%emt 0:03:13]} 6. h3 {[%emt 0:02:34] C28: Vienna Game: 2...Nf6 3 Bc4 Nc6.} a6 {[%emt 0:02:36]} 7. Nge2 {[%emt 0:00:53]} d6 {[%emt 0:00:41]} 8. O-O {[%emt 0:02:31]} O-O {[%emt 0:03:15]} 9. Kh2 {[%emt 0:05:41]} b5 (9... Be6 {with more complications.} 10. Ng3 Ng4+ 11. Kg1 Qh4) 10. Ba2 {[%emt 0:02:29] [#]} Be6 $146 {[%emt 0:17:46]} ({Predecessor:} 10... b4 11. Na4 Ba7 12. f4 exf4 13. Nxf4 d5 14. Nxd5 Nxd5 15. exd5 Nd4 16. axb4 Nf5 {1-0 (25) Stoll,V (871)-Uhlig,J (747) Dittrichshuette 2004}) 11. f4 {[%emt 0:03:34]} Bxa2 12. Rxa2 {[%emt 0:05:53] [#]} (12. Nxa2 {is more complex.} Ng4+ 13. Kg3 exf4+ 14. Nxf4 Ne3 15. Bxe3 Bxe3 16. Nc3) 12... Ng4+ $1 {[%emt 0:06:14]} 13. Kg3 $1 {[%emt 0:02:52]} Ne3 {[%emt 0:01:16]} 14. Bxe3 {[%emt 0:00:35]} Bxe3 {[%emt 0:00:03]} 15. f5 {[%emt 0:05:24]} Bg5 {[%emt 0:10:19]} 16. Kh2 {[%emt 0:09:41]} Ne7 {[%emt 0:08:54]} 17. Qe1 {[%emt 0:07:15]} c6 {[%emt 0:13:05]} 18. Qg3 {[%emt 0:09:54]} Bf6 {[%emt 0:05:32]} 19. Qg4 {[%emt 0:05:12]} d5 {[%emt 0:06:46]} 20. Ng3 {[%emt 0:06:55]} Kh7 {[%emt 0:00:12]} 21. Nh5 {[%emt 0:02:12]} Ng8 {[%emt 0:01:12]} 22. exd5 {[%emt 0:08:43]} (22. Raa1 {keeps more tension.} Bg5 23. h4 Bf6 24. Rae1) 22... cxd5 {[%emt 0:00:19]} 23. Qf3 {[%emt 0:00:38]} g6 {[%emt 0:05:23]} 24. Ng3 {[%emt 0:04:29]} Ne7 {[%emt 0:01:47]} 25. Raa1 {[%emt 0:00:18]} Qd6 $2 {[%emt 0:00:40] [#]} (25... h5 $17) 26. Kh1 $2 {[%emt 0:00:44]} (26. Nge4 $1 $16 {[%mdl 512]} dxe4 27. Nxe4) 26... Rad8 {[%emt 0:01:04]} (26... Bh4 $15 27. Nce2 Bf6) 27. Rae1 {[%emt 0:02:42]} (27. Nce4 $11 dxe4 28. Nxe4) 27... g5 {[%emt 0:04:15]} (27... Qc6 $15) 28. Nh5 {[%emt 0:02:02]} Rfe8 {[%emt 0:02:40] [#]} 29. Nxd5 $1 {[%emt 0:03:07] White has more active pieces.} Nxd5 {[%emt 0:01:08] [#]} 30. Qxd5 $1 {[%emt 0:00:31][%mdl 64] Remove Defender} Qxd5 {[%emt 0:01:31]} 31. Nxf6+ {[%emt 0:00:11]} Kg7 {[%emt 0:00:03]} 32. Nxd5 {[%emt 0:00:17]} Rxd5 $14 {[%emt 0:00:02][%mdl 4096] Endgame KRR-KRR} 33. Re4 {[%emt 0:00:55]} Rc8 {[%emt 0:01:14]} 34. Rf2 {[%emt 0:00:55]} f6 {[%emt 0:00:12]} (34... Rdc5 $14) 35. Kg1 {[%emt 0:01:44]} h5 {[%emt 0:00:45]} 36. g4 {[%emt 0:00:53]} h4 {[%emt 0:00:40]} 37. Kf1 {[%emt 0:00:50]} Kf7 {[%emt 0:00:01]} 38. Ke1 {[%emt 0:00:18]} Ke7 {[%emt 0:00:21]} 39. Kd2 {[%emt 0:00:40]} Kd6 {[%emt 0:00:32]} 40. Rfe2 {[%emt 0:02:40]} Rc4 {[%emt 0:01:39] [#]} (40... a5 $16) 41. Ke3 {[%emt 0:29:23]} (41. Rxc4 bxc4 42. Re4) (41. Rxc4 $1 $18 {has better winning chances.} bxc4 42. Re4) 41... Rcd4 {[%emt 0:30:22]} (41... Rxe4+ 42. Kxe4 Rd4+ 43. Ke3 Rf4) (41... Rxe4+ $16 42. Kxe4 Rd4+ 43. Ke3 a5) 42. Rd2 $18 {[%emt 0:00:46] And now b4 would win.} a5 {[%emt 0:00:00]} (42... Ke7 43. c3 Rxe4+ 44. Kxe4 (44. dxe4 Rc5) 44... Rd8) (42... Kc7 43. c3 Rxe4+ 44. Kxe4 (44. dxe4 Rc5 $16) 44... Rc5) 43. c3 {[%emt 0:00:00]} (43. b4 $142 Kc7 44. c3 (44. bxa5 Rxe4+ 45. dxe4 Rc5 $11)) 43... Rxe4+ {[%emt 0:00:00]} (43... Ra4 $142 44. c4 Rc5) 44. Kxe4 $2 {[%emt 0:00:00] KR-KR} (44. dxe4 Rxd2 45. Kxd2) 44... a4 {[%emt 0:00:00]} (44... Rc5 {keeps fighting.} 45. d4 Rc4) 45. d4 {[%emt 0:00:00] dxe5+ would kill now.} Kc6 {[%emt 0:00:00]} 46. Rd3 {[%emt 0:00:00]} exd4 {[%emt 0:00:00]} 47. cxd4 {[%emt 0:00:00] White wants to mate with Rc3+.} (47. Rxd4 Re5+ 48. Kd3 Re1 $11) 47... Rd8 {[%emt 0:00:00]} 48. d5+ {[%emt 0:00:00]} Kd6 {[%emt 0:00:00]} 49. Rc3 {[%emt 0:00:00]} Re8+ {[%emt 0:00:00]} 50. Kd4 {[%emt 0:00:00] aiming for Rc6+.} Re2 {[%emt 0:00:00]} 51. Rc6+ {[%emt 0:00:00]} Kd7 {[%emt 0:00:00]} 52. Rxf6 {[%emt 0:00:00] Threatens to win with Ra6.} Rxb2 {[%emt 0:00:00]} 53. Kc5 {[%emt 0:00:00] Black must now prevent Rf7+.} Rb3 $2 {[%emt 0:00:00]} (53... Rc2+ 54. Kxb5 Rh2 55. Kxa4 (55. Rf7+ Kd6 $16) 55... Rxh3) 54. Rf7+ {[%emt 0:00:00]} Ke8 {[%emt 0:00:00]} 55. Rg7 {[%emt 0:00:00]} Rxa3 {[%emt 0:00:00] [#]} (55... b4 $142 56. axb4 (56. Rxg5 bxa3 57. Rg8+ Kf7 $14) 56... Rc3+ 57. Kd6 Rxh3 58. Re7+ (58. Rxg5 Kf7 $16) 58... Kf8) 56. d6 $1 {[%emt 0:00:19]} ({Weaker is} 56. Rxg5 Rxh3 57. Rh5 (57. Kxb5 Rh1 $11) 57... a3 $14) 56... Rxh3 {[%emt 0:00:00]} 57. f6 {[%emt 0:00:52]} Kf8 {[%emt 0:05:09]} 58. Rxg5 {[%emt 0:03:43][%cal Od6d7]} Rc3+ {[%emt 0:02:10]} 59. Kxb5 $2 {[%emt 0:01:07]} (59. Kd5 $18 {White threatens Ke6 and mate.} Kf7 60. d7 Rd3+ 61. Ke5) 59... Rc8 $2 {[%emt 0:01:56][%mdl 8192]} (59... Rd3 $11) 60. Rh5 {[%emt 0:01:28]} (60. d7 $142 Rd8 61. Kc6 (61. Kxa4 Rxd7 62. Rh5 Rd4+ 63. Kb5 Rxg4 $11)) 60... Kf7 {[%emt 0:00:20]} 61. g5 {[%emt 0:00:13][%cal Od6d7] Threatening mate with d7!} (61. Kxa4 Kxf6 62. Rxh4 Rd8) ({And not} 61. Kxa4 Kxf6 62. Rxh4 Rd8 $11) 61... a3 {[%emt 0:00:56]} 62. Rxh4 {[%emt 0:03:09] Intending d7 and mate.} Ra8 {[%emt 0:00:07]} 63. Rh1 {[%emt 0:00:00]} a2 {[%emt 0:00:01]} 64. Ra1 {[%emt 0:00:00]} (64. d7 $142 Kg6 65. Ra1) 64... Ke6 {[%emt 0:00:40]} 65. Kb4 $2 {[%emt 0:00:41]} (65. Re1+ Kxd6 66. f7) 65... Kxd6 {[%emt 0:00:32]} 66. g6 $2 {[%emt 0:00:44]} ({White must play} 66. Kb3 $18 Rb8+ 67. Kxa2) 66... Ke6 $11 {[%emt 0:00:12] The position is equal.} 67. f7 {[%emt 0:00:26][%cal Oa1a2] Hoping for Rxa2!} Kf6 {[%emt 0:00:54]} 68. Rxa2 {[%emt 0:00:24] Dancing on a razor blade.} Rb8+ {[%emt 0:00:16]} 69. Kc5 {[%emt 0:00:05]} Kxg6 {[%emt 0:00:02]} 70. Rf2 {[%emt 0:00:22]} Rf8 {[%emt 0:00:02]} 71. Kb5 {[%emt 0:01:48] White really could win this.   Weighted Error Value: White=0.52/Black=0.36} 1/2-1/2

[Event "Bangabandhu Premier Div League 2022"]
[Site "Dhaka"]
[Date "2022.12.09"]
[Round "10.11"]
[White "Nayan Kumar, Mohanto"]
[Black "Abdul, Momin"]
[Result "0-1"]
[ECO "D55"]
[WhiteElo "1976"]
[BlackElo "1900"]
[Annotator "TA"]
[PlyCount "134"]
[EventDate "2022.11.30"]
[EventType "team-tourn"]
[EventCountry "BAN"]
[SourceTitle "playchess.com"]
[Source "ChessBase"]
[SourceQuality "1"]
[TimeControl "40/5400+30:1800+30"]

{[%evp 20,134,29,-10,32,-6,17,25,21,0,122,124,117,115,177,156,159,145,164,33,19,-39,0,0,0,0,0,0,0,0,0,0,0,0,57,44,57,0,0,0,0,0,0,0,0,0,0,-19,-14,-35,-35,-56,-35,-64,-35,-35,-35,-75,0,-35,0,-93,-127,-331,-232,-372,-303,-322,-322,-414,-407,-481,-416,-394,-319,-388,-374,-402,-354,-398,-408,-406,-406,-379,-363,-978,-956,-29974,-29975,-29973,-29974,-29974,-29977,-29979,-29980,-29980,-29981,-29981,-29981,-29982,-29983,-29982,-29983,-29984,-29982,-29981,-29982,-29986,-29987,-29987,-29984,-29984,-29985,-29988,-29989,-29990,-29991]} 1. d4 {[%emt 0:06:09]} d5 {[%emt 0:00:10]} 2. c4 {[%emt 0:00:18]} e6 {[%emt 0:00:07]} 3. Nc3 {[%emt 0:00:09]} Nf6 {[%emt 0:00:02]} 4. cxd5 {[%emt 0:00:20]} exd5 {[%emt 0:00:02]} 5. Bg5 {[%emt 0:00:17]} Be7 {[%emt 0:00:44]} 6. e3 {[%emt 0:00:06]} b6 {[%emt 0:03:36]} 7. Nf3 {[%emt 0:01:11]} O-O {[%emt 0:00:57]} 8. Bd3 {[%emt 0:00:28]} Bb7 {[%emt 0:01:11]} 9. Rc1 {[%emt 0:01:07]} Nbd7 10. O-O {[%emt 0:00:35]} c5 {[%emt 0:00:29]} 11. Bb1 {[%emt 0:00:51]} Re8 {[%emt 0:03:35] D55: Queen's Gambit Declined: 4 Bg5 Be7: Lines without ...h6 and 6...h6 7 Bxf6.} 12. h3 {[%emt 0:08:00] [#]} a6 $146 ({Predecessor:} 12... Rc8 13. Ne2 Ne4 14. Bxe7 Qxe7 15. dxc5 bxc5 16. Bxe4 Qxe4 17. Ng3 Qe6 18. Re1 g6 19. Qa4 {0-1 (54) Aguiar,C (1764)-Gonzalez Trigal,J (2369) Lisbon 2020}) 13. a4 Ne4 {[%emt 0:10:09] White has an edge.} 14. Bf4 f5 {[%emt 0:03:50]} (14... Rc8 $11) 15. dxc5 $16 {[%emt 0:23:24]} Ndxc5 {[%emt 0:01:09]} 16. Nd4 {[%emt 0:03:36]} Qd7 {[%emt 0:39:18]} (16... Bf6 $16 {was necessary.}) 17. f3 {[%emt 0:26:07]} Nxc3 {[%emt 0:04:30]} 18. Rxc3 {[%emt 0:01:48]} g6 {[%emt 0:01:01] [#]} 19. a5 {[%emt 0:11:48]} (19. b4 $1 $18) 19... bxa5 $14 {[%emt 0:02:03]} 20. Nb3 {[%emt 0:01:22]} (20. Rf2 $11) 20... Nxb3 {[%emt 0:01:14]} 21. Qxb3 {[%emt 0:00:11] Rc7 is the strong threat.} Rac8 {[%emt 0:02:30] Inhibits Rc7.} 22. Rfc1 {[%emt 0:00:04]} Rxc3 {[%emt 0:02:18]} 23. Rxc3 {[%emt 0:00:05]} Rc8 {[%emt 0:00:14] Inhibits Rc7.} 24. Qb6 {[%emt 0:02:03]} Rxc3 {[%emt 0:00:40]} 25. bxc3 {[%emt 0:00:02]} Bd8 {[%emt 0:02:05]} 26. Qd4 {[%emt 0:01:18]} Qc6 {[%emt 0:05:25] Prevents c4.} ({Black should play} 26... Qe6 $11) 27. Ba2 $1 {[%emt 0:04:06][%mdl 1024] White has compensation.} g5 {[%emt 0:02:26]} 28. Be5 {[%emt 0:04:00]} (28. Bg3 $1 $14) 28... Bb6 $11 {[%emt 0:01:20]} 29. Qd3 {[%emt 0:00:24]} f4 $36 {[%emt 0:06:51][%mdl 2048] White is under pressure.} 30. Bd4 {[%emt 0:00:18]} fxe3 {[%emt 0:01:01]} 31. Qxe3 {[%emt 0:00:33]} ({Much weaker is} 31. Bb1 Bxd4 32. cxd4 (32. Qxh7+ $2 {loses.} Kf8 $19) 32... Qc1+ 33. Kh2 Qc7+ 34. Kg1 Qe7 $17) 31... Bxd4 {[%emt 0:00:23]} 32. Qxd4 {[%emt 0:00:37][%mdl 4096] Endgame KQB-KQB} Kf7 {[%emt 0:00:51]} 33. Qh8 {[%emt 0:01:17]} h6 {[%emt 0:00:45]} 34. Qe5 {[%emt 0:02:12]} a4 {[%emt 0:01:12]} 35. Kh2 {[%emt 0:00:23]} Qe6 {[%emt 0:01:24]} (35... a3 {is interesting.} 36. Kh1 a5 37. Qe3 Ba6) 36. Qd4 {[%emt 0:01:35]} Qd6+ {[%emt 0:00:41]} (36... Bc6 {is more complex.} 37. Kh1 Qe1+ 38. Kh2 Ke6) 37. Kh1 {[%emt 0:00:15]} a3 {[%emt 0:00:25]} 38. Qd3 {[%emt 0:01:38] [#] aiming for Qh7+.} Kg7 {[%emt 0:00:28] Prevents Qh7+.} (38... Ke8 $17) 39. c4 {[%emt 0:00:44][%cal Rc4d5]} d4 {[%emt 0:00:22]} (39... Bc6 $5 {[%cal Rd5d4]}) 40. Bb1 {[%emt 0:00:35]} (40. c5 $1 $11 Qxc5 41. Qe2) 40... Bc6 $17 {[%emt 0:00:40]} 41. Kg1 $2 {[%emt 0:06:35]} (41. Qh7+ $17 {was worth a try.} Kf8 42. Qf5+ (42. Qh8+ $2 Ke7 $17) 42... Ke7 43. Bd3) 41... Kf8 {[%emt 0:01:31] Active counter play!} 42. Kf2 {[%emt 0:03:50]} (42. Ba2 $142) 42... Bd7 {[%emt 0:01:05]} 43. Ba2 {[%emt 0:01:35]} Qc5 {[%emt 0:00:48]} 44. Ke2 {[%emt 0:01:02]} Bf5 {[%emt 0:00:07] Against Qg6. ( -> ...Qe5+)} 45. Qd2 {[%emt 0:01:39]} a5 {[%emt 0:00:59]} 46. h4 {[%emt 0:02:22]} Kf7 {[%emt 0:02:23] Strongly threatening ...d3+.} ({Stronger than} 46... gxh4 47. Qxh6+ Ke8 48. Qxh4 $19) 47. hxg5 {[%emt 0:00:35]} hxg5 {[%emt 0:00:05] Threatens to win with ...d3+.} 48. Kf1 {[%emt 0:08:31]} Kf6 {[%emt 0:01:04] Hoping for ...Qe5.} 49. g4 {[%emt 0:02:55]} Bg6 {[%emt 0:02:54] White must now prevent ...Qe5.} 50. f4 {[%emt 0:00:58] Against Qe5} gxf4 {[%emt 0:04:59]} 51. Qxf4+ {[%emt 0:00:03]} Kg7 {[%emt 0:00:03] And now ...Bd3+ would win.} 52. Qd2 {[%emt 0:01:34] Inhibits Bd3+.} (52. Kg2) 52... Qe5 $19 {[%emt 0:01:42]} 53. Kf2 {[%emt 0:04:27]} Qh2+ {[%emt 0:01:00] Black mates.} 54. Ke1 {[%emt 0:00:02]} Qg1+ {[%emt 0:00:06]} 55. Ke2 {[%emt 0:00:22]} Qxg4+ {[%emt 0:00:12]} 56. Kf2 {[%emt 0:01:05]} Qh4+ {[%emt 0:00:59]} 57. Kg1 {[%emt 0:00:25]} Qg3+ {[%emt 0:00:10]} 58. Qg2 {[%emt 0:00:31]} Qxg2+ {[%emt 0:03:15]} 59. Kxg2 {[%emt 0:00:01] KB-KB} Kf6 {[%emt 0:00:02]} 60. Kf3 {[%emt 0:00:40]} Ke5 {[%emt 0:00:02]} 61. Ke2 {[%emt 0:00:26]} Kd6 {[%emt 0:00:29]} 62. Kd2 {[%emt 0:01:24]} Kc5 {[%emt 0:00:02]} 63. Kc1 {[%emt 0:00:23]} Bd3 {[%emt 0:00:17]} 64. Bb3 {[%emt 0:00:30]} Bxc4 {[%emt 0:00:05]} 65. Bd1 {[%emt 0:00:20]} Bd3 {[%emt 0:00:06]} 66. Ba4 {[%emt 0:00:25]} Kb4 {[%emt 0:00:04]} 67. Be8 {[%emt 0:00:08]} Kc3 {[%emt 0:00:02] Never resign too early!   Weighted Error Value: White=0.53/Black=0.22 (precise)} 0-1

[Event "Bangabandhu Premier Div League 2022"]
[Site "Dhaka"]
[Date "2022.12.09"]
[Round "10.12"]
[White "Warsia, Khusbu"]
[Black "Swarnavo Choudhury"]
[Result "1/2-1/2"]
[ECO "B44"]
[WhiteElo "1540"]
[BlackElo "1977"]
[Annotator "TA"]
[PlyCount "101"]
[EventDate "2022.11.30"]
[EventType "team-tourn"]
[EventCountry "BAN"]
[SourceTitle "playchess.com"]
[Source "ChessBase"]
[SourceQuality "1"]
[TimeControl "40/5400+30:1800+30"]

{[%evp 17,101,7,4,-15,0,-33,-25,-28,16,-20,-12,-9,-12,-17,-12,-12,-12,-14,8,18,41,41,40,0,66,0,0,-34,-37,-37,-56,-116,-112,-116,-112,-112,-77,-74,-70,-143,-101,-166,-142,-190,-108,-114,0,-183,-83,-81,-49,-58,-51,-121,-106,-86,-76,-300,-151,-1002,0,0,0,0,0,0,0,0,3,6,4,0,0,0,0,0,0,0,0,0,0,0,0,0,0,0]} 1. e4 {[%emt 0:00:02]} c5 {[%emt 0:01:06]} 2. Nf3 {[%emt 0:00:06]} e6 {[%emt 0:00:22]} 3. d4 {[%emt 0:00:07]} cxd4 {[%emt 0:00:05]} 4. Nxd4 {[%emt 0:00:04]} Nc6 {[%emt 0:00:07]} 5. c4 {[%emt 0:00:14]} Nf6 {[%emt 0:01:26]} 6. Nc3 {[%emt 0:00:09]} Bb4 {[%emt 0:01:16]} 7. Nxc6 {[%emt 0:00:47]} bxc6 {[%emt 0:00:27]} 8. Bd3 {[%emt 0:04:14]} e5 {[%emt 0:02:37]} 9. O-O {[%emt 0:00:57]} O-O {[%emt 0:02:57]} 10. Kh1 {[%emt 0:08:13] 10.h3 is setting a new trend. B44: Sicilian: Taimanov: 5 Nb5.} d6 {[%emt 0:14:26]} 11. h3 {[#]} Bxc3 $146 {[%emt 0:16:49]} (11... Be6 12. f4 exf4 13. Bxf4 Nd7 14. Ne2 Bc5 15. b3 Ne5 16. Qd2 Qb6 17. Rad1 Rad8) ({Predecessor:} 11... Be6 12. f4 exf4 13. Bxf4 Nd7 14. Ne2 Bc5 15. b3 Ne5 16. Qd2 Qb6 17. Rad1 Rad8 {1-0 (32) Zielinski,W (2136)-Kuciel,W (1928) Jastrzebia Gora 2016}) 12. bxc3 {[%emt 0:06:00] Black has an edge.} d5 {[%emt 0:01:05]} 13. cxd5 {[%emt 0:01:12]} (13. exd5 {keeps more tension.} cxd5 14. Bg5 dxc4 15. Bxc4 h6 16. Bh4) 13... cxd5 {[%emt 0:02:25]} 14. Bg5 {[%emt 0:04:55]} dxe4 {[%emt 0:05:39]} 15. Bxf6 {[%emt 0:00:05][%mdl 64] Remove Defender} Qxf6 {[%emt 0:08:28]} 16. Bxe4 {[%emt 0:00:10]} Rb8 {[%emt 0:03:05]} 17. Qc2 {[%emt 0:07:03]} h6 {[%emt 0:06:50]} 18. Rab1 {[%emt 0:03:14]} Ba6 {[%emt 0:05:40]} 19. Rxb8 {[%emt 0:06:47]} Rxb8 {[%emt 0:01:29]} 20. Rb1 {[%emt 0:03:41]} Rc8 {[%emt 0:06:25]} (20... Rxb1+ $11 21. Qxb1 Qb6) 21. Bf5 {[%emt 0:00:40]} (21. c4 $14) 21... Rd8 $11 {[%emt 0:01:26]} 22. c4 {[%emt 0:52:50] [#]} Bxc4 $1 {[%emt 0:08:49]} 23. Bh7+ {[%emt 0:00:00]} Kh8 {[%emt 0:01:27]} 24. Qxc4 {[%emt 0:00:00]} (24. Be4 $15 Qe6 25. Rb7) 24... Kxh7 $15 {[%emt 0:00:10][%mdl 4096] Endgame KQR-KQR} 25. Qe4+ {[%emt 0:00:00]} g6 {[%emt 0:00:37]} 26. Qe3 {[%emt 0:00:00]} Qe7 {[%emt 0:06:33]} 27. Rb5 {[%emt 0:00:00]} e4 {[%emt 0:01:02]} (27... Rd1+ {with more complications.} 28. Kh2 e4 29. Qf4 Rf1) 28. Qb3 {[%emt 0:00:00] Against Rd1+} (28. Qf4 $1 $15) 28... Rd7 {[%emt 0:01:03] Threatens to win with ...Qf6.} 29. Rb8 {[%emt 0:00:00]} (29. a4 $17 {is a better defense.}) 29... Qe5 $19 {[%emt 0:00:36]} 30. Rb4 {[%emt 0:00:00]} (30. a4 $17) 30... Qa1+ {[%emt 0:00:23]} (30... a5 $1 $19 31. Ra4 h5) 31. Kh2 $17 {[%emt 0:00:00]} Qe5+ {[%emt 0:00:09]} (31... Qf6 $17 {Strongly threatening ...Rd3.} 32. Rxe4 Qxf2) 32. g3 $2 {[%emt 0:00:00] [#]} (32. Kh1 $1 $11 {and White has nothing to worry.}) 32... Qf5 {[%emt 0:00:58]} (32... e3 $1 $19 {[%cal Re3f2] and Black stays clearly on top.} 33. Rf4 (33. Qxe3 $2 Qxe3 34. fxe3 Rd2+ 35. Kg1 Rxa2 $19) 33... Kg8 34. fxe3 (34. Qxe3 $2 {loses.} Qxe3 35. fxe3 Rd2+ 36. Kg1 Rxa2 $19) 34... Rd2+ 35. Kg1 Qa1+ 36. Rf1 Qxa2 37. Qb8+ Kh7) 33. Qe3 {[%emt 0:00:00]} Re7 {[%emt 0:00:24]} 34. Ra4 {[%emt 0:00:00]} a5 {[%emt 0:00:31]} 35. g4 {[%emt 0:00:00]} (35. Rd4 $15) 35... Qe5+ {[%emt 0:00:11]} 36. Kg2 {[%emt 0:00:00]} Qb5 {[%emt 0:00:41]} 37. Qa3 {[%emt 0:00:00]} (37. Rd4 $17 {might work better.}) 37... Re5 {[%emt 0:00:42]} ({Black should try} 37... Qe8 $19 {White must now prevent ...e3.} 38. Qc5 e3 39. fxe3 Qxa4 40. Qxe7 Qxa2+ 41. Kg3 a4) 38. Qf8 $2 {[%emt 0:00:00] [#]} (38. Qb3 $17 Qe8 39. Rc4) 38... Qd7 $2 {[%emt 0:00:31]} ({Inferior is} 38... Qxa4 39. Qxf7+ Kh8 40. Qf6+ (40. Qxg6 $2 {perishes.} Qe8 $19) 40... Kh7 41. Qxe5 $11) (38... Qb7 $1 $19 {( -> ...e3+)} 39. Kg1 e3) 39. Rd4 $1 $11 {[%emt 0:00:00][%mdl 64] The position is equal.} Qe7 {[%emt 0:00:28]} 40. Qxe7 {[%emt 0:00:00]} Rxe7 {[%emt 0:00:01] KR-KR} 41. Rd5 {[%emt 0:18:20]} Ra7 {[%emt 0:06:28]} 42. Re5 {[%emt 0:00:00]} Kg7 {[%emt 0:14:48]} 43. Rxe4 {[%emt 0:00:00]} Kf6 {[%emt 0:00:21]} 44. f4 {[%emt 0:00:00]} Rb7 {[%emt 0:03:36] aiming for ...Rb2+.} 45. Ra4 {[%emt 0:00:00]} Rb5 {[%emt 0:00:10]} 46. Kf3 {[%emt 0:00:00]} Ke6 {[%emt 0:01:59]} 47. Ke4 {[%emt 0:00:00]} Kd6 {[%emt 0:00:27]} 48. Rd4+ {[%emt 0:00:00]} Ke6 {[%emt 0:01:42]} 49. Ra4 {[%emt 0:00:00]} Kd6 {[%emt 0:00:24]} 50. Rd4+ {[%emt 0:00:00]} Ke6 {[%emt 0:00:04]} 51. Ra4 {[%emt 0:00:00] Weighted Error Value: White=0.47/Black=0.39} 1/2-1/2